Cogmind - Beta 16.1 @@@ ROGUE MODE // 2026.02.22 @ 15:58:30 Player: kim.jet.wav Result: Destroyed by G-47 Trooper with Particle Gun Performance ------------- Evolutions (3) 1500 Regions Visited (9) 1800 Robots Destroyed (44) 220 Value Destroyed (1142) 1142 Prototype IDs (25) 500 Alien Tech Used (0) 0 Bonus (555) 555 TOTAL SCORE: 5717 Bonus ------- High Alert Combat Kills 13 Follower Combat Kills 44 Entered Garrisons 200 Aligned with FarCom 300 Friendly Fire -2 Cogmind --------- Core Integrity 0/700 Matter 240/300 Energy 100/100 System Corruption 9% Temperature Cool (6) Movement Core (50) Location -7/Garrison Parts ------- > --- POWER (2) -------- (None) > --- PROPULSION (4) --- (None) > --- UTILITY (4) ------ Advanced Targeting Computer > --- WEAPON (3) ------- (None) > --- INVENTORY (5) ---- (None) Peak State ------------ > --- POWER ------------ Nuclear Core Light Nuclear Core > --- PROPULSION ------- Light Treads Light Treads Advanced Treads Medium Treads > --- UTILITY ---------- Improved Heat Sink Large Storage Unit Transport Network Coupler Target Analyzer > --- WEAPON ----------- Heavy EM Shotgun Advanced Beam Rifle EM Pulse Cannon > --- INVENTORY -------- Light Treads Heat Sink Advanced Targeting Computer Shield Generator EM Pulse Gun Particle Gun Particle Gun Advanced Beam Rifle Ion Cannon Grenade Launcher Deploy-a-Sentry Deploy-a-Sentry Deploy-a-Sentry [Rating: 38] Favorites ----------- Power Ion Engine Engine Ion Engine Power Core Nuclear Core Propulsion Light Treads Treads Light Treads Leg Aluminum Leg Flight Unit VTOL Module Utility Target Analyzer Device Seismic Detector Storage Large Storage Unit Processor Target Analyzer Weapon Advanced Beam Rifle Energy Gun Advanced Beam Rifle Energy Cannon EM Pulse Cannon Ballistic Gun Flak Gun Launcher EMP Blaster Build | -11 -10 -10 -10 -9 -8 -7 -7 -7 -7 ------- Run | Yrd Mat Min Exi Min Mat Fac Was Fac Gar Slots Evolved 6 | . . . . . 4 2 . . . Power 1 | . . . . . 1 . . . . Propulsion 2 | . . . . . 1 1 . . . Utility 2 | . . . . . 1 1 . . . Weapon 1 | . . . . . 1 . . . . Parts Attached 37 | 7 1 . 1 . 14 4 . 1 9 Power 6 | 1 . . . . 3 . . . 2 Engine 2 | 1 . . . . 1 . . . . Core 4 | . . . . . 2 . . . 2 Reactor . | . . . . . . . . . . Propulsion 10 | 2 . . . . 3 2 . . 3 Treads 5 | . . . . . 3 2 . . . Leg 2 | 2 . . . . . . . . . Wheel . | . . . . . . . . . . Hover . | . . . . . . . . . . Flight 3 | . . . . . . . . . 3 Utility 9 | 2 . . . . 4 2 . . 1 Device 4 | 1 . . . . 2 1 . . . Storage 2 | 1 . . . . 1 . . . . Processor 3 | . . . . . 1 1 . . 1 Hackware . | . . . . . . . . . . Protection . | . . . . . . . . . . Artifact . | . . . . . . . . . . Weapon 12 | 2 1 . 1 . 4 . . 1 3 Energy Gun 5 | 2 . . . . 3 . . . . Energy Cannon 1 | . . . . . 1 . . . . Ballistic Gun 4 | . . . . . . . . 1 3 Ballistic Cannon . | . . . . . . . . . . Launcher 2 | . 1 . 1 . . . . . . Special Weapon . | . . . . . . . . . . Impact Weapon . | . . . . . . . . . . Slashing Weapon . | . . . . . . . . . . Piercing Weapon . | . . . . . . . . . . Special Melee Weapon . | . . . . . . . . . . Unidentified Prototypes 2 | . . . . . 2 . . . . Parts Lost 10 | . . . . . 2 . 1 . 7 Power 2 | . . . . . . . . . 2 Propulsion 3 | . . . . . . . . . 3 Utility 2 | . . . . . 1 . 1 . . Weapon 3 | . . . . . 1 . . . 2 Highest Loss Streak 6 | . . . . . 1 . 1 . 6 To Critical Strikes . | . . . . . . . . . . Average Backups 6 | . 2 4 4 4 7 9 6 . . Power . | . 1 1 1 1 . . . . . Propulsion . | . . . . . . . . . . Utility 2 | . . 1 1 1 2 3 2 . . Weapon 3 | . 1 2 2 2 3 6 3 . . Tool/Special . | . . . . . . . . . . Unused Backups 7 | . . . . . . . 7 . . Power . | . . . . . . . . . . Propulsion . | . . . . . . . . . . Utility 3 | . . . . . . . 3 . . Weapon 4 | . . . . . . . 4 . . Tool/Special . | . . . . . . . . . . Average Slot Usage (%) 90 | . 100 100 100 100 95 97 50 2 10 Engine 8 | . 14 14 14 14 10 . . . . Core 5 | . . . . . 5 15 7 . 1 Treads 14 | . . . . . 21 27 15 . . Leg 10 | . 28 28 28 28 3 . . . . Device 9 | . 14 14 14 14 8 7 3 . . Storage 9 | . 14 14 14 14 9 7 3 . . Processor 6 | . . . . . 8 14 7 . 2 Energy Gun 19 | . 26 28 22 14 23 15 7 . . Energy Cannon 1 | . . . . . . 7 3 . . Launcher 3 | . 1 . 5 14 2 . . . . Peak Build Rating 38 | 7 7 7 10 10 31 38 38 4 17 Average Rating 19 | 5 7 7 8 10 22 35 18 2 5 On Entrance 11 | . 7 7 7 10 10 31 38 . 4 Avg Prop Armor Cover (%) 8 | 11 . . . . 5 . . . . Naked Turns 78 | . . . . . . . 36 12 30 Heaviest Build 45 | 14 16 14 17 17 45 45 45 4 11 Greatest Support 90 | 20 20 20 20 20 60 90 90 3 4 Greatest Overweight (x) 3 | 2 . . . . . . . 1 3 Average Overweight (x) . | . . . . . . . . . . Largest Inventory Capacity 15 | 8 8 8 8 8 15 15 15 5 5 Average Capacity 11 | 7 8 8 8 8 12 15 9 5 5 Most Carried 15 | 1 4 4 7 7 15 14 14 . . Average Carried 8 | . 2 4 5 7 10 12 7 . . Final Capacity 15 | 8 8 8 8 8 15 15 5 5 5 Final Carried 14 | 1 4 4 7 7 13 14 . . . Class Distribution -------------------- 59% | Skirmisher 40% | Mutant Dominant Class ---------------- Mutant | -10/Materials Mutant | -10/Mines Mutant | -10/Exiles Mutant | -9/Mines Skirmisher | -8/Materials Skirmisher | -7/Factory Mutant | -7/Waste Mutant | -7/Factory Mutant | -7/Garrison Resources | -11 -10 -10 -10 -9 -8 -7 -7 -7 -7 ----------- Run | Yrd Mat Min Exi Min Mat Fac Was Fac Gar Matter Collected 932 | 270 . 26 . 41 413 50 . . 132 Remotely . | . . . . . . . . . . Salvage Created 1173 | 110 28 18 . . 924 50 . . 43 Parts 91 | 3 9 3 . . 68 4 . . 4 Haulers Intercepted 1 | . . . . . 1 . . . . Recyclers Shooed . | . . . . . . . . . . Parts Field Recycled . | . . . . . . . . . . Retrieved Matter . | . . . . . . . . . . Parts Self-Destructed . | . . . . . . . . . . Prevented . | . . . . . . . . . . Parts Restored . | . . . . . . . . . . Kills | -11 -10 -10 -10 -9 -8 -7 -7 -7 -7 ------- Run | Yrd Mat Min Exi Min Mat Fac Was Fac Gar Combat Hostiles Destroyed 31 | . 3 . . . 25 1 . . 2 Guns 15 | . . . . . 13 . . . 2 Cannons 1 | . . . . . . 1 . . . AOE 15 | . 3 . . . 12 . . . . Classes Destroyed 12 | 2 2 1 . . 6 1 . . . Worker 2 | . . 1 . . 1 . . . . Builder 3 | . 2 . . . 1 . . . . Tunneler 1 | 1 . . . . . . . . . Hauler 1 | . . . . . 1 . . . . Recycler 2 | 1 . . . . 1 . . . . Operator 2 | . . . . . 2 . . . . Watcher 2 | . . . . . 2 . . . . Swarmer 16 | . 3 . . . 11 . . . 2 Grunt 10 | . . . . . 10 . . . . Sentry 3 | . . . . . 3 . . . . Hunter 1 | . . . . . 1 . . . . Programmer 1 | . . . . . . 1 . . . Best Kill Streak 10 | 2 5 1 . . 10 1 . . 2 Combat Bots Only 7 | . 3 . . . 7 1 . . 2 Max Kills in Single Turn 3 | 1 2 1 . . 3 1 . . 1 Gunslinging . | . . . . . . . . . . Exploded 2 | . 2 . . . 2 . . . . Melee . | . . . . . . . . . . Uniques/NPCs Destroyed . | . . . . . . . . . . Combat | -11 -10 -10 -10 -9 -8 -7 -7 -7 -7 -------- Run | Yrd Mat Min Exi Min Mat Fac Was Fac Gar Hostile Shots Fired 195 | . 15 . . . 55 6 1 . 118 Missed 61 | . 5 . . . 14 . . . 42 Hits 134 | . 10 . . . 41 6 1 . 76 Melee 11 | . . . . . . . 1 . 10 Projectile 123 | . 10 . . . 41 6 . . 66 AOE 2 | . . . . 2 . . . . . Critical Strikes 5 | . . . . . 2 . . . 3 Damage Taken 2162 | . 86 . . 91 574 93 50 . 1268 Core 791 | . 8 . . . 82 . . . 701 Absorbed by Shields 79 | . . . . . . . . . 79 Core Remaining (%) 93 | 100 . . . 96 85 . . . . Volleys Fired 82 | 6 4 1 . 2 53 7 . . 9 Largest 3 | 2 1 2 . 2 3 3 . . 2 Hottest 176 | 80 30 80 . 73 176 174 . . 58 Shots Fired 165 | 12 4 2 . 4 116 13 . . 14 Gun 124 | 12 . 2 . 2 89 5 . . 14 Cannon 10 | . . . . . 2 8 . . . Launcher 31 | . 4 . . 2 25 . . . . Special . | . . . . . . . . . . Kinetic 14 | . . . . . . . . . 14 Thermal 59 | 6 . 1 . . 49 3 . . . Explosive 27 | . 4 . . . 23 . . . . Electromagnetic 65 | 6 . 1 . 4 44 10 . . . Robot Hit Streak 10 | 2 2 3 . 3 10 8 . . 10 Robot Miss Streak 5 | 2 2 . . 1 5 . . . 1 Penetration Max . | . . . . . . . . . . Secondary Targets 3 | . . . . . 3 . . . . Max Gunslinging Chain 1 | . . . . . 1 . . . . Shots Hit Robots 86 | 5 2 2 . 3 57 5 . . 12 Core Hits 75 | 3 6 1 . 1 56 3 . . 5 Critical Kills 1 | . . . . . . . . . 1 Critical Parts Destroyed . | . . . . . . . . . . Critical Strikes 7 | . . 1 . . 4 1 . . 1 Burn 3 | . . . . . 2 1 . . . Destroy 1 | . . . . . . . . . 1 Corrupt 3 | . . 1 . . 2 . . . . Melee Attacks . | . . . . . . . . . . Impact . | . . . . . . . . . . Slashing . | . . . . . . . . . . Piercing . | . . . . . . . . . . Sneak Attacks . | . . . . . . . . . . Combat Hostiles . | . . . . . . . . . . Follow-up Attacks . | . . . . . . . . . . Damage Inflicted 2740 | 58 309 23 . 45 2031 44 . . 230 Guns 1118 | 58 . 23 . 12 764 34 . . 227 Cannons 37 | . . . . . 27 10 . . . Explosions 1580 | . 309 . . 33 1238 . . . . Melee . | . . . . . . . . . . Ramming 5 | . . . . . 2 . . . 3 Kinetic 227 | . . . . . . . . . 227 Thermal 649 | 21 . 11 . . 592 25 . . . Explosive 1282 | . 309 . . . 973 . . . . Electromagnetic 577 | 37 . 12 . 45 464 19 . . . Impact . | . . . . . . . . . . Slashing . | . . . . . . . . . . Piercing . | . . . . . . . . . . Highest Corruption 9 | . . . . . . 3 9 9 9 Average Corruption 5 | . . . . . . 2 7 9 9 Corruption Purged . | . . . . . . . . . . Corruption Blocked . | . . . . . . . . . . Effects 15 | . . . . . . 6 3 1 5 Message Errors 2 | . . . . . . 1 . . 1 Matter Fused 3 | . . . . . . 2 . . 1 Heat Flow Errors 2 | . . . . . . . 2 . . Energy Discharges 2 | . . . . . . 1 . 1 . Data Loss (minor) 1 | . . . . . . . 1 . . Data Loss (major) 2 | . . . . . . . . . 2 Misfires 3 | . . . . . . 2 . . 1 Overload Shots . | . . . . . . . . . . Overflow Damage 12 | . 5 . . 4 3 . . . . Projectiles . | . . . . . . . . . . Explosions 12 | . 5 . . 4 3 . . . . Melee . | . . . . . . . . . . Knockbacks . | . . . . . . . . . . Impact . | . . . . . . . . . . Kinetic . | . . . . . . . . . . Secondary . | . . . . . . . . . . Self-Inflicted Damage 82 | . . . . . 81 . . . 1 Shots 4 | . . . . . 4 . . . . Rammed 4 | . . . . . 2 . . . 2 Targets Rammed 4 | . . . . . 2 . . . 2 Kicked . | . . . . . . . . . . Crushed . | . . . . . . . . . . Highest Temperature 321 | 108 . 18 . 24 321 144 184 . 6 Average Temperature 86 | 55 . 12 . 12 97 69 90 . 3 Received Heat Transfer 723 | . . . . . 207 . . . 516 Effects 1 | . . . . . 1 . . . . Shutdowns 1 | . . . . . 1 . . . . Siege Activations . | . . . . . . . . . . Martial Activations . | . . . . . . . . . . Shielding Activations . | . . . . . . . . . . Robots Disrupted . | . . . . . . . . . . Combat Hostiles . | . . . . . . . . . . Robots Corrupted . | . . . . . . . . . . Combat Hostiles . | . . . . . . . . . . Parts Fried 3 | 1 . . . . 2 . . . . Impact Corruptions . | . . . . . . . . . . Robots Melted . | . . . . . . . . . . Combat Hostiles . | . . . . . . . . . . Parts Melted 3 | . . . . . 2 1 . . . Heat Transferred 1351 | 50 . 25 . . 1165 111 . . . Parts Sabotaged . | . . . . . . . . . . Parts Stolen . | . . . . . . . . . . Parts Stripped . | . . . . . . . . . . Power Chain Reactions 3 | . . . . . 3 . . . . Alert | -11 -10 -10 -10 -9 -8 -7 -7 -7 -7 ------- Run | Yrd Mat Min Exi Min Mat Fac Was Fac Gar Maximum Alert Level 2 | . . . . . 2 1 . . . Low Security (%) 60 | 100 100 100 . 100 9 97 100 100 100 Level 1 37 | . . . . . 87 2 . . . Level 2 1 | . . . . . 3 . . . . Level 3 . | . . . . . . . . . . Level 4 . | . . . . . . . . . . Level 5 . | . . . . . . . . . . High Security . | . . . . . . . . . . Max Security . | . . . . . . . . . . Peak Influence 445 | 10 108 31 . . 445 200 . 20 193 Initial 200 | . . 26 . . . 200 . . 14 Average 138 | 1 45 10 . . 272 60 . 10 69 Influence Increases 1368 | 10 118 5 . . 971 45 . 30 189 Destroy 0b10 Robot/C 660 | . 60 . . . 540 20 . . 40 Destroy 0b10 Robot/NC 70 | 10 10 5 . . 45 . . . . Destroy Leader 138 | . 10 . . . 118 10 . . . Allied During Kill 12 | . . . . . 12 . . . . Successful Hack 65 | . . . . . 21 . . 30 14 Disable Machine 150 | . 30 . . . 105 15 . . . Destroy Structure 123 | . 8 . . . 115 . . . . Lose Combat Pursuer 150 | . . . . . 15 . . . 135 Influence Decreases 1235 | 10 50 73 . . 530 486 . 10 76 Entered New Map 289 | . . 42 . . . 241 . . 6 Time Decay 836 | 10 50 31 . . 490 245 . 10 . Lost Part 90 | . . . . . 20 . . . 70 Lost Ally 20 | . . . . . 20 . . . . Squads Dispatched 8 | . 1 1 . . 5 1 . . . Investigation 2 | . . . . . 2 . . . . Extermination 1 | . . . . . . 1 . . . Reinforcement 3 | . 1 . . . 2 . . . . Assault 1 | . . 1 . . . . . . . Garrison 1 | . . . . . 1 . . . . Intercept . | . . . . . . . . . . Searches Triggered . | . . . . . . . . . . Construction Impeded 2 | . . . . . 2 . . . . Haulers Reinforced . | . . . . . . . . . . Active Scanning Responses . | . . . . . . . . . . Cargo Convoy Interrupts . | . . . . . . . . . . Stealth | -11 -10 -10 -10 -9 -8 -7 -7 -7 -7 --------- Run | Yrd Mat Min Exi Min Mat Fac Was Fac Gar Distress Signals 2 | . . . . . 2 . . . . Communications Jammed . | . . . . . . . . . . Distress Signals . | . . . . . . . . . . Times Spotted 67 | . 6 . . 2 36 1 4 . 18 Peak Tracking Total 12 | . 5 . . 2 5 1 3 . 12 Tactical Retreats 3 | . . . . . 1 . . . 2 Traps | -11 -10 -10 -10 -9 -8 -7 -7 -7 -7 ------- Run | Yrd Mat Min Exi Min Mat Fac Was Fac Gar Traps Triggered 4 | . . . . . . 2 . . 2 Indirectly . | . . . . . . . . . . Trap Hack Attempts . | . . . . . . . . . . Triggered . | . . . . . . . . . . Disarmed . | . . . . . . . . . . Reprogrammed . | . . . . . . . . . . Reused . | . . . . . . . . . . Traps Extracted . | . . . . . . . . . . Installed . | . . . . . . . . . . Triggered . | . . . . . . . . . . Machines | -11 -10 -10 -10 -9 -8 -7 -7 -7 -7 ---------- Run | Yrd Mat Min Exi Min Mat Fac Was Fac Gar Machines Disabled 10 | . 2 . . . 7 1 . . . Max in Single Turn 4 | . 1 . . . 4 1 . . . Machines Repaired . | . . . . . . . . . . Machines Dismantled . | . . . . . . . . . . Machines Sabotaged . | . . . . . . . . . . Overloaded Fab Kills . | . . . . . . . . . . Hacking | -11 -10 -10 -10 -9 -8 -7 -7 -7 -7 --------- Run | Yrd Mat Min Exi Min Mat Fac Was Fac Gar Machines Accessed 9 | . 1 . 1 . 4 1 . 1 1 Terminals 7 | . 1 . . . 4 1 . . 1 Fabricators . | . . . . . . . . . . Repair Stations . | . . . . . . . . . . Recycling Units . | . . . . . . . . . . Scanalyzers . | . . . . . . . . . . Garrison Access 1 | . . . . . . . . 1 . Total Hacks 19 | . 2 . 1 . 9 2 . 4 1 Successful 10 | . . . 1 . 4 2 . 2 1 Failed 9 | . 2 . . . 5 . . 2 . Catastrophic 1 | . . . . . 1 . . . . Database Lockouts . | . . . . . . . . . . Manual 6 | . 2 . 1 . 3 . . . . Terminals 14 | . 2 . . . 9 2 . . 1 Fabricators . | . . . . . . . . . . Repair Stations . | . . . . . . . . . . Recycling Units . | . . . . . . . . . . Scanalyzers . | . . . . . . . . . . Garrison Access 4 | . . . . . . . . 4 . Terminal Hacks 8 | . . . 1 . 4 2 . . 1 Record 1 | . . . . . 1 . . . . Branch Access Points 2 | . . . . . 1 1 . . . Emergency Access Points 1 | . . . . . . . . . 1 Locate Traps 2 | . . . . . 1 1 . . . Dispatch Records 1 | . . . . . 1 . . . . Proto ID Catalog 1 | . . . 1 . . . . . . Fabricator Hacks . | . . . . . . . . . . Repair Station Hacks . | . . . . . . . . . . Recycling Unit Hacks . | . . . . . . . . . . Scanalyzer . | . . . . . . . . . . Garrison Access Hacks 2 | . . . . . . . . 2 . Unlock Access 1 | . . . . . . . . 1 . Coupler Status 1 | . . . . . . . . 1 . Unauthorized Hacks . | . . . . . . . . . . Terminals . | . . . . . . . . . . Fabricators . | . . . . . . . . . . Repair Stations . | . . . . . . . . . . Recycling Units . | . . . . . . . . . . Scanalyzers . | . . . . . . . . . . Garrison Access . | . . . . . . . . . . Data Cores Recovered 2 | . . . . . 2 . . . . Used . | . . . . . . . . . . Hacking Detections 5 | . . . . . 4 . . 1 . Full Trace Events 2 | . . . . . 2 . . . . Feedback Events . | . . . . . . . . . . Feedback Blocked . | . . . . . . . . . . Robot Schematics Acquired . | . . . . . . . . . . Robots Built . | . . . . . . . . . . Authchips . | . . . . . . . . . . Time . | . . . . . . . . . . Total Robot Build Rating . | . . . . . . . . . . Part Schematics Acquired . | . . . . . . . . . . Parts Built . | . . . . . . . . . . Authchips . | . . . . . . . . . . Time . | . . . . . . . . . . Total Part Build Rating . | . . . . . . . . . . Part Studies Acquired . | . . . . . . . . . . Parts Repaired . | . . . . . . . . . . Time . | . . . . . . . . . . Parts Recycled . | . . . . . . . . . . Recycled Matter . | . . . . . . . . . . Retrieved Matter . | . . . . . . . . . . Retrieved Components . | . . . . . . . . . . Parts Scanalyzed . | . . . . . . . . . . Part Schematics Acquired . | . . . . . . . . . . Parts Damaged . | . . . . . . . . . . Bothacking | -11 -10 -10 -10 -9 -8 -7 -7 -7 -7 ------------ Run | Yrd Mat Min Exi Min Mat Fac Was Fac Gar Used RIF Installer . | . . . . . . . . . . Robots Hacked . | . . . . . . . . . . Non-combat . | . . . . . . . . . . Combat . | . . . . . . . . . . Robot Hacks Applied . | . . . . . . . . . . Relay Couplers Released . | . . . . . . . . . . Fabnet Peak Effective % . | . . . . . . . . . . Robots Rewired . | . . . . . . . . . . Allies Hacked . | . . . . . . . . . . Hacks Repelled . | . . . . . . . . . . Allies | -11 -10 -10 -10 -9 -8 -7 -7 -7 -7 -------- Run | Yrd Mat Min Exi Min Mat Fac Was Fac Gar Total Allies 1 | . . 1 . . . . . . . Largest Group 1 | . . 1 1 1 1 . . . . Highest-Rated Group 31 | . . 31 31 31 31 . . . . Highest-Rated Ally 31 | . . 31 31 31 31 . . . . Total Orders . | . . . . . . . . . . Ally Attacks 35 | . . . . . 27 . 8 . . Total Damage 634 | . . . . . 213 . 421 . . Kills 4 | . . . . . 3 . 1 . . Allies Corrupted . | . . . . . . . . . . Allies Melted . | . . . . . . . . . . Turrets Deployed 1 | . . . . . . . 1 . . Intel | -11 -10 -10 -10 -9 -8 -7 -7 -7 -7 ------- Run | Yrd Mat Min Exi Min Mat Fac Was Fac Gar Active Infowar (turns) 2405 | 14 193 118 428 324 562 733 33 . . Seismic 1639 | 14 193 118 428 324 562 . . . . T.N.C. 766 | . . . . . . 733 33 . . Robot Analysis Total . | . . . . . . . . . . Derelict Logs Recovered 2 | . . . . 2 . . . . . Drone Launches . | . . . . . . . . . . Drone Recoveries . | . . . . . . . . . . Exploration | -11 -10 -10 -10 -9 -8 -7 -7 -7 -7 ------------- Run | Yrd Mat Min Exi Min Mat Fac Was Fac Gar Turns Passed 3456 | 73 193 118 428 324 1286 749 69 27 189 Spaces Moved 2306 | 38 147 89 329 252 696 455 87 37 176 Core 275 | 9 . . . . . . 66 37 163 Treads 1030 | . . . . . 554 455 21 . . Legs 988 | 29 147 89 329 252 142 . . . . Wheels . | . . . . . . . . . . Hover . | . . . . . . . . . . Flight 13 | . . . . . . . . . 13 Fastest Speed 35 | 50 120 120 120 120 120 156 50 50 35 Average Speed 131 | 113 120 120 120 120 151 158 75 70 80 Slowest Speed 200 | 150 120 120 120 120 160 160 156 100 200 Overloaded Moves . | . . . . . . . . . . Propulsion Burnouts . | . . . . . . . . . . Robots Hopped . | . . . . . . . . . . Potential Cave-ins . | . . . . . . . . . . Cave-ins Triggered . | . . . . . . . . . . Exploration Rate (%) 36 | 3 37 25 68 65 51 11 66 2 32 Regions Visited 9 Branch Regions 3 Pre-discovered Areas . | . . . . . . . . . . Known Exits Taken 1 | . . . . . . . . 1 . Unknown Exits Taken 6 | 1 1 1 1 1 1 . . . . Scrap Searched 1 | . . . . 1 . . . . . Spaces Dug 32 | . . . . . 32 . . . . Terrain Destroyed 149 | . 8 . . . 141 . . . . Melee . | . . . . . . . . . . Projectile 2 | . . . . . 2 . . . . AOE 147 | . 8 . . . 139 . . . . Terrain Rammed . | . . . . . . . . . . Walls Destroyed . | . . . . . . . . . . Machines Disabled . | . . . . . . . . . . Actions | -11 -10 -10 -10 -9 -8 -7 -7 -7 -7 --------- Run | Yrd Mat Min Exi Min Mat Fac Was Fac Gar Total 2565 | 52 158 98 361 269 818 475 92 37 205 Wait 94 | 1 3 9 29 16 29 5 1 . 1 Move 2296 | 37 146 88 328 251 695 455 86 36 174 Hop . | . . . . . . . . . . Pick Up 18 | 1 3 . 3 . 9 2 . . . Fast Attach 22 | 7 . . . . 4 1 . 1 9 Attach 4 | . . . . . 3 1 . . . Detach 1 | . . . . . 1 . . . . Swap 23 | . 2 . 1 . 18 2 . . . Drop 11 | . . . . . 4 2 5 . . Fire 82 | 6 4 1 . 2 53 7 . . 9 Melee . | . . . . . . . . . . Ram 2 | . . . . . . . . . 2 Kick . | . . . . . . . . . . Crush 2 | . . . . . 2 . . . . Escape Stasis 10 | . . . . . . . . . 10 Rewire . | . . . . . . . . . . Trap . | . . . . . . . . . . Miscellaneous . | . . . . . . . . . . Route ------- -11/Scrapyard -10/Materials -10/Mines -10/Exiles -9/Mines -8/Materials -7/Factory (discovered 3 exits: Sto / *Low x2) -7/Waste -7/Factory -7/Garrison (discovered 1 exit: *Sto) History --------- Turn | Location | Event 3 | -11/Scrapyard | Discovered new exit (range 15) 74 | -11/Scrapyard | Entered Materials 184 | -10/Materials | Discovered new exit (range 10) 267 | -10/Materials | Entered Mines 268 | -10/Mines | Met a Derelict testing a Signal Generator 311 | -10/Mines | Build established: Mutant 377 | -10/Mines | Deemed a non-threat by the Exiles lab entrance 377 | -10/Mines | Discovered new exit (range 5) 385 | -10/Mines | Entered Exiles 385 | -10/Exiles | Accompanied by 1 ally 415 | -10/Exiles | Met 8R-AWN 433 | -10/Exiles | Met EX-HEX 480 | -10/Exiles | Met EX-DEC 499 | -10/Exiles | Met EX-BIN 523 | -10/Exiles | Aligned with FarCom system 525 | -10/Exiles | Given EX-Vault access code 559 | -10/Exiles | Opened EX-Vault 570 | -10/Exiles | Found Deploy-a-Sentry 572 | -10/Exiles | Found Deploy-a-Sentry 575 | -10/Exiles | Found Deploy-a-Sentry 600 | -10/Exiles | Warned to stay clear of 0b10 Research branches 611 | -10/Exiles | Exiles lab attacked by MAIN.C 767 | -10/Exiles | Discovered new exit (range 14) 813 | -10/Exiles | Left Exiles lab with Deploy-a-Sentry 813 | -10/Exiles | Entered Mines 813 | -9/Mines | Accompanied by 1 ally 878 | -9/Mines | Learned 2 Materials zone layouts 943 | -9/Mines | Learned Materials security intel 991 | -9/Mines | Assembled infested the area 996 | -9/Mines | Assisted by a Guerilla fighting off Assembled 1117 | -9/Mines | Discovered new exit (range 6) 1137 | -9/Mines | Entered Materials 1137 | -8/Materials | Accompanied by 1 ally 1137 | -8/Materials | Evolved 4 slots: Power x1, Propulsion x1, Utility x1, Weapon x1 1505 | -8/Materials | Build established: Skirmisher 1669 | -8/Materials | Garrison activated, responded to threat 1720 | -8/Materials | Destroyed 7 combat bots 2404 | -8/Materials | Discovered new exit (range 6) 2423 | -8/Materials | Entered Factory 2423 | -7/Factory | Evolved 2 slots: Propulsion x1, Utility x1 3113 | -7/Factory | Identified exit to Storage 3113 | -7/Factory | Identified exit to Lower Caves 3172 | -7/Factory | Sucked down chute 3172 | -7/Factory | Entered Waste 3183 | -7/Waste | Spotted C-40 Crusher 3187 | -7/Waste | EMP discharged 3193 | -7/Waste | Spotted C-40 Crusher 3204 | -7/Waste | Crushed by Compactor (1 part destroyed, 1 dropped) 3205 | -7/Waste | Released all parts (11) 3206 | -7/Waste | Spotted C-40 Crusher 3212 | -7/Waste | Spotted C-40 Crusher 3216 | -7/Waste | DAS Turret deployed 3218 | -7/Waste | Spotted C-40 Crusher 3222 | -7/Waste | Allies destroyed C-40 Crusher 3235 | -7/Waste | Spotted C-40 Crusher 3236 | -7/Waste | Discovered new exit (range 11) 3241 | -7/Waste | Entered Factory 3267 | -7/Factory | Identified exit to Garrison 3268 | -7/Factory | Entered Garrison 3356 | -7/Garrison | Triggered checkpoint 3370 | -7/Garrison | Discovered exit to Storage (range 10) 3375 | -7/Garrison | Attempted to access garrison exit controls, blocked by remote lockdown 3434 | -7/Garrison | Core integrity fell below 50% 3444 | -7/Garrison | Core integrity fell below 20% 3450 | -7/Garrison | Triggered checkpoint 3457 | -7/Garrison | Destroyed by G-47 Trooper with Particle Gun Last Messages --------------- 03435_ G-47 Trooper suffers critical hit (Burn). 03437_ Critical hit (Burn: +37). 03438_ System corrupted: Substantial component data lost. 03438_ Acquired VTOL Module. 03439_ VTOL Module destroyed. 03439_ Acquired 22 matter. 03441_ Acquired VTOL Module. 03444_ VTOL Module destroyed. 03444_ Acquired 25 matter. 03445_ Acquired Lgt. Nuclear Core. 03450_ Beams of light sweep through the air. An alarm sounds. 03450_ Acquired 85 matter. 03452_ Lgt. Nuclear Core destroyed. 03454_ Triggered Stasis Trap. 03454_ A bubble of rippling energy engulfs the area. 03454_ Field strength at 94. 03454_ Field strength at 84. 03455_ Field strength at 74. 03456_ VTOL Module destroyed. 03456_ Field strength at 55. Map ----- +----------------------------------------------------+ | ?????????????????????????????????????????????????? | | ?????????????????????????????????????????????????? | | ?????????????????????????????????????????????????? | | ?????????????????????????????????????????????????? | | ?????????????????????????????????????????????????? | | ?????????????????????????????????????????????????? | | ?????????????????????????????????????????????????? | | ?????????????????????????????????????????????????? | | ?????????????????????????????????????????????????? | | ?????????????????????????????????????????????????? | | ?????????????????????????????????????????????????? | | ?????????????????????????????????????????????????? | | ?????????????????????????????????????????????????? | | ?????????????????????????????????????????????????? | | ?????????????????????????????????????????????????? | | ?????????????????????????????????????????????????? | | ?????????????????????????????????????############? | | ?????????????????????????????????????# #? | | ?????????????????????????????????????# #? | | ?????????????????????????????????????# = #? | | ?????????????????????????????????????# [ *%! [#? | | ?????????????????????????????????????# / #? | | ?????????????????????????#####???????# #? | | ?????????????????????????# g #???????# ggg #? | | ??????????????????#+###### gg#########b #? | | ??????????????????# gg @ [gg%[ #? | | ??????????????????## ######+#### ### #? | | ?????????????????????????????????# #?############? | | ?????????????????????????????????# #???#####?????? | | ?????????????????????????????????# #???# #?????? | | ???????????????????????????????### ##### > #?????? | | ???????????????????????????????+ #?????? | | ???????????????????????????????# #?????? | | ???????????????????????????????# ##########?????? | | ???????????????????????????????# #??????????????? | | ???????????????????????????????# #??????????????? | | ???????????????????????????????# #??????????????? | | ???????????????????????????????# #??????????????? | | ???????????????????????????????+ #??????????????? | | ???????????????????????????????# #??????????????? | | ???????????????????????????????# #??????????????? | | ?????????????????C?????????????# #??????????????? | | ?????????######""""###+##??????# #??????????????? | | ?????????# ######## #??????????????? | | ??????? #??????????????? | | ??????? #??????????????? | | ?????????# ## ## ###########??????????????? | | ?????????# ## ## ###??????????????????????? | | ?????????" #??????????????????????? | | ?????????" #??????????????????????? | +----------------------------------------------------+ Best States ------------- Heat Dissipation 48 Energy Generation 23 Energy Capacity 400 Matter Stores 300 Matter Capacity 300 Sight Range 16 Terrain Scan Density 10 Evasion (%) 55 Targeting Accuracy 8 Target Analysis 5 Recoil Reduction 4 Item Schematics ----------------- None Robot Schematics ------------------ None Fabricated ------------ Nothing Repaired ---------- Nothing Studied --------- None Alien Tech Used ----------------- None Achievements -------------- None Challenges ------------ None Game ------ Seed BiomechanicalXenonHumpback Manual? 0 Play Time 01:21:17 Cumulative 52.4 hours Start 2026.02.12 @ 20:42:02 End 2026.02.22 @ 15:58:30 Sessions 25 Manual Loads 0 Difficulty Rogue Special Mode None Game No. 224 Rogue 224 Adventurer 0 Explorer 0 Win Type - Total 0 Types 0/0/0/0/0/0/0/0/0/0 Lore% 27 Gallery% 21 Achievement% 16 Wizard Run 0 Options --------- Layout 0 ASCII 1 Keyboard 1 Movement Numpad Keybinds 1 Fullscreen 1 Font 18/X11 Map View 76x50 Zoom Use 0% Tactical HUD 1 Map Filters NONE Filters NONE Steam 1 RUN: 1ddf491d-3719-40e9-b642-7b28dc4eacea